bitfinex-derivatives/quotes_ETHF0:USTF0_20230403
["timestamp","ask_amount","ask_price","bid_price","bid_amount"]
[1680503705925,4.0438,1783.2,1783.1,0.59293889]
[1680503706431,5.0438,1783.2,1783.1,0.41760326]
[1680503707732,1.0,1783.1,1782.9,0.58702041]
[1680503707926,4.67920018,1783.0,1782.9,0.58702041]
[1680503712130,5.51320018,1783.0,1782.9,0.58702041]
[1680503713432,5.51320018,1783.0,1782.8,3.72443014]
[1680503713636,1.17672653,1782.9,1782.8,3.7242268]
[1680503714434,1.17672653,1782.9,1782.8,3.13740973]
[1680503715334,1.17672653,1782.9,1782.8,4.88327339]
[1680503715537,0.88243657,1782.9,1782.8,5.13447042]
[1680503715929,0.88243657,1782.9,1782.8,5.2557518]
[1680503716130,1.47069905,1782.9,1782.8,6.43331834]
[1680503722343,0.58826248,1782.9,1782.8,6.43331834]
[1680503725041,1.47069905,1782.9,1782.8,6.43331834]
[1680503725439,1.47069905,1782.9,1782.8,5.43331834]
[1680503729143,1.47069905,1782.9,1782.8,6.43331834]
[1680503729444,1.47069905,1782.9,1782.8,5.43331834]
[1680503730037,1.47069905,1782.9,1782.8,4.2557518]
[1680503730038,1.47069918,1782.9,1782.8,4.2557518]
[1680503730239,1.47069918,1782.9,1782.8,5.43331834]
[1680503730435,0.88243657,1782.9,1782.8,4.29320495]
[1680503730639,0.88243657,1782.9,1782.8,3.4137518]
[1680503731038,0.88243657,1782.9,1782.8,4.29320544]
[1680503731342,0.88243657,1782.9,1782.8,4.29320982]
[1680503731944,0.88243657,1782.9,1782.8,4.29321094]
[1680503732137,0.58825059,1782.9,1782.8,5.31720712]
[1680503733240,1.47068716,1782.9,1782.8,5.31720712]
[1680503734148,0.88243657,1782.9,1782.8,4.13964058]
[1680503735950,0.88243657,1782.9,1782.8,5.01903454]
[1680503737843,0.88243657,1782.9,1782.8,4.18503454]
[1680503738443,4.38452653,1783.0,1782.8,4.77133937]
[1680503738857,1.17672653,1782.9,1782.8,3.89194541]
[1680503739048,2.17672653,1782.9,1782.8,3.89194541]
[1680503739949,1.17672653,1782.9,1782.8,3.89194541]
[1680503740151,2.17672653,1782.9,1782.8,3.89194541]
[1680503740757,1.17672653,1782.9,1782.8,3.89194541]
[1680503744957,1.17672653,1782.9,1782.8,3.88694541]
[1680503745954,2.05907952,1782.9,1782.8,4.17803454]
[1680503746159,0.88235299,1782.9,1782.8,4.17803454]
[1680503746753,0.58819428,1782.9,1782.8,6.31320712]
[1680503752057,0.58819428,1782.9,1782.8,5.47820712]
[1680503755352,0.58819428,1782.9,1782.8,4.47820712]
[1680503756065,0.58819428,1782.9,1782.8,5.47820712]
[1680503757555,0.58819428,1782.9,1782.8,6.17371623]
[1680503757762,0.58819428,1782.9,1782.8,6.1737143]
[1680503758065,0.58819428,1782.9,1782.8,5.47820712]
[1680503758267,0.58819428,1783.0,1782.9,0.834]
[1680503758466,0.58819428,1783.0,1782.9,3.5520073]
[1680503758661,0.58819428,1783.0,1782.9,3.78842914]
[1680503760158,0.58819428,1783.0,1782.9,2.78842914]
[1680503762063,0.58819428,1783.0,1782.9,2.95442914]
[1680503763469,0.58819428,1783.0,1782.9,1.95442914]
[1680503766171,0.58819428,1783.0,1782.9,2.95442914]
[1680503766768,0.58819428,1783.0,1782.9,1.95442914]
[1680503767282,0.58819428,1783.0,1782.9,2.95442914]
[1680503767477,0.58819428,1783.0,1782.9,1.95442914]
[1680503768574,0.58819428,1783.0,1782.9,2.95442914]
[1680503769275,0.58819428,1783.0,1782.9,1.95442914]
[1680503771276,1.47036831,1783.0,1782.9,1.95442914]
[1680503779595,0.58801532,1783.0,1782.9,1.95442914]
[1680503780897,0.58801532,1783.0,1782.9,2.94873415]
[1680503781294,0.58801532,1783.0,1782.9,1.94873415]
[1680503781492,0.58801532,1783.0,1782.9,2.94873415]
[1680503781800,0.58801532,1783.0,1782.9,1.94873415]
[1680503782000,0.58801532,1783.0,1782.9,2.94873415]
[1680503782194,0.58801532,1783.0,1782.9,1.94873415]
[1680503785901,1.47036831,1783.0,1782.9,1.94873415]
[1680503786101,1.47041458,1783.0,1782.9,1.94873415]
[1680503786303,0.88235299,1783.0,1782.9,1.94873415]
[1680503789502,1.17672653,1783.0,1782.9,0.82255771]
[1680503789698,1.17672653,1783.0,1782.9,0.23642184]
[1680503789699,2.31040018,1783.0,1782.9,0.23642184]
[1680503789899,2.31040018,1783.0,1782.9,0.09689897]
[1680503790100,3.31040018,1783.0,1782.9,0.09689897]
[1680503793506,2.31040018,1783.0,1782.9,0.09689897]
[1680503794609,3.31040018,1783.0,1782.9,0.09689897]
[1680503794811,2.31040018,1783.0,1782.9,0.09689897]
[1680503795310,3.31040018,1783.0,1782.9,0.09689897]
[1680503795501,2.31040018,1783.0,1782.9,0.09689897]
[1680503795808,1.47140018,1783.0,1782.9,0.09689897]
[1680503796301,1.17581608,1783.0,1782.9,0.09689897]
[1680503811827,6.07165107,1783.1,1782.9,0.93789897]
[1680503811828,1.17581608,1783.1,1782.9,0.93789897]
[1680503812015,0.88142971,1783.0,1782.9,0.09689897]
[1680503812213,0.88142971,1783.0,1782.9,0.93189897]
[1680503812918,0.88142971,1783.0,1782.9,1.93189897]
[1680503813820,0.88142971,1783.0,1782.9,0.93189897]
[1680503814329,0.88142971,1783.0,1782.9,1.00973614]
[1680503814725,0.88142971,1783.0,1782.9,0.17473614]
[1680503815025,2.17581608,1783.0,1782.9,0.17473614]
[1680503815729,2.17581608,1783.0,1782.9,0.09689897]
[1680503820733,2.17560141,1783.0,1782.9,0.09689897]
[1680503821032,2.17560339,1783.0,1782.9,0.09689897]
[1680503821234,1.0,1783.0,1782.9,0.09689897]
[1680503821635,2.47140018,1783.0,1782.9,0.09689897]
[1680503821824,4.15140018,1783.0,1782.9,0.09689897]
[1680503822025,1.0,1782.9,1782.8,2.25869111]
[1680503822228,0.839,1782.8,1782.6,0.58613587]
[1680503822426,2.31063703,1782.7,1782.6,0.58613587]
[1680503822627,1.46963703,1782.7,1782.6,0.58613587]
[1680503823527,0.58785481,1782.8,1782.6,2.5610073]
[1680503823726,0.58785481,1782.8,1782.7,5.76807105]
[1680503824033,0.58785481,1782.8,1782.7,6.76807105]
[1680503824233,1.46963703,1782.9,1782.7,6.76807105]
[1680503824532,1.46960015,1782.9,1782.8,2.42715195]
[1680503825630,1.46960015,1782.9,1782.8,2.47255504]
[1680503825835,1.46960015,1782.9,1782.8,3.35182609]
[1680503826629,0.88178222,1782.9,1782.8,3.35182609]
[1680503827031,0.58789236,1782.9,1782.8,2.76567414]
[1680503828339,1.46967458,1782.9,1782.8,2.76567414]
[1680503828637,1.46967458,1782.9,1782.8,2.32372984]
[1680503828935,0.88178222,1782.9,1782.8,2.32372984]
[1680503831737,0.88178222,1782.9,1782.8,2.31672984]
[1680503843449,1.17570962,1783.0,1782.8,2.31672984]
[1680503843642,1.17570962,1783.0,1782.9,0.5867348]
[1680503843843,1.17570962,1783.0,1782.9,0.63122734]
[1680503852664,1.17570962,1783.0,1782.9,0.5867348]
[1680503854957,1.17570962,1783.0,1782.9,1.46626111]
[1680503856049,1.17570962,1783.0,1782.9,0.58699006]
[1680503857054,4.38350962,1783.0,1782.9,0.58699006]
[1680503858761,3.2078,1783.0,1782.9,0.58699006]
[1680503858948,4.38485402,1783.0,1782.9,0.58699006]
[1680503859257,3.2078,1783.0,1782.9,0.58699006]
[1680503864364,7.36120018,1783.0,1782.9,0.58699006]
[1680503864572,7.36120018,1783.0,1782.8,2.02431681]
[1680503864865,1.841,1782.9,1782.8,1.14504576]
[1680503865766,0.841,1782.9,1782.8,1.14504576]
[1680503866958,2.01813767,1782.9,1782.8,1.14504576]
[1680503867463,2.01813767,1782.9,1782.8,2.02431681]
[1680503869471,2.01813767,1782.9,1782.8,1.14504576]
[1680503869668,3.01813767,1782.9,1782.8,1.14504576]
[1680503870569,2.01813767,1782.9,1782.8,1.14504576]
[1680503872072,1.17713767,1782.9,1782.8,1.14504576]
[1680503872273,1.17713767,1782.9,1782.8,0.58699006]
[1680503872466,1.24261912,1782.9,1782.8,0.58699006]
[1680503874868,1.24261912,1782.9,1782.8,1.46626111]
[1680503875073,1.24261912,1782.9,1782.8,1.46622522]
[1680503879176,2.08361912,1782.9,1782.7,0.8804196]
[1680503879475,18.3106769,1782.8,1782.2,1.17432114]
[1680503879670,18.3106769,1782.8,1782.1,0.34378742]
[1680503879671,6.90413453,1782.3,1782.1,0.34378742]
[1680503879863,0.841,1782.1,1782.0,0.88147129]
[1680503880069,5.22620068,1782.1,1782.0,0.88147129]
[1680503880270,5.22620068,1782.1,1781.9,0.88147129]
[1680503880474,1.72409194,1782.0,1781.9,0.88147129]
[1680503880774,1.17740068,1782.0,1781.9,0.88147129]
[1680503881777,0.58726075,1782.0,1781.7,0.62247129]
[1680503881978,3.2078,1781.9,1781.8,0.841]
[1680503882166,3.66803278,1781.9,1781.7,1.74447129]
[1680503883073,3.66803278,1781.9,1781.7,1.122]
[1680503883670,0.46023278,1781.9,1781.8,4.3228]
[1680503883870,0.58726075,1782.1,1781.8,1.115]
[1680503884072,1.46815187,1782.2,1782.0,1.122]
[1680503884275,0.58726075,1782.1,1782.0,1.122]
[1680503885273,3.79506075,1782.2,1782.0,1.122]
[1680503885880,4.91506075,1782.2,1781.9,1.122]
[1680503887682,4.3278,1782.2,1781.9,1.122]
[1680503887874,4.3278,1782.2,1781.9,1.6810018]
[1680503890377,1.12,1782.2,1781.9,1.6810018]
[1680503890582,0.5736303,1782.3,1782.1,1.122]
[1680503890782,4.91606075,1782.4,1782.1,1.122]
[1680503892083,1.122,1782.3,1782.0,1.116]
[1680503893378,1.122,1782.3,1782.0,2.116]
[1680503893579,1.122,1782.3,1782.0,1.116]
[1680503895681,1.122,1782.3,1782.0,1.67421603]
[1680503897185,0.15433423,1782.2,1782.0,1.67421603]
[1680503900186,0.15433423,1782.2,1782.1,1.116]
[1680503900388,0.15433423,1782.2,1782.1,2.116]
[1680503900683,1.112,1782.5,1782.1,5.3238]
[1680503900889,1.112,1782.5,1782.2,1.0]
[1680503902087,4.3278,1782.6,1782.2,2.122]
[1680503902390,3.2078,1782.6,1782.4,1.12]
[1680503902889,3.2078,1782.6,1782.5,0.0474705]
[1680503903081,3.2078,1782.6,1782.5,1.0474705]
[1680503903890,3.2078,1782.6,1782.5,0.0474705]
[1680503906686,1.70526075,1782.8,1782.5,0.0474705]
[1680503906886,1.118,1782.8,1782.5,0.0474705]
[1680503907990,1.70526075,1782.8,1782.5,0.0474705]
[1680503911897,1.70526075,1782.8,1782.5,0.06216249]
[1680503915898,0.58726075,1782.8,1782.5,1.17816249]
[1680503918988,1.46815187,1782.8,1782.5,1.17816249]
[1680503920002,0.58726075,1782.7,1782.5,1.17816249]
[1680503920799,4.91506075,1782.7,1782.5,0.06216249]
[1680503920999,1.58726075,1782.6,1782.5,0.06216249]
[1680503921196,1.6361313,1782.6,1782.3,2.83410378]
[1680503922001,2.7481313,1782.6,1782.3,1.71210378]
[1680503922304,3.2078,1782.5,1782.2,1.122]
[1680503923801,3.79506075,1782.5,1782.2,1.122]
[1680503924003,3.79506075,1782.5,1782.2,2.82880546]
[1680503926500,0.58726075,1782.5,1782.2,2.82880546]
[1680503927000,0.04904382,1782.4,1782.2,2.82880546]
[1680503934828,0.63630457,1782.4,1782.2,2.82880546]
[1680503935421,0.58726075,1782.3,1782.2,1.122]
[1680503939527,4.67595187,1782.3,1782.1,0.5601398]
[1680503939726,0.58775245,1782.2,1782.0,1.122]
[1680503941832,0.58775245,1782.2,1782.0,2.00221147]
[1680503942026,0.04949248,1782.1,1782.0,2.56097263]
[1680503942227,0.04949248,1782.1,1782.0,2.27297263]
[1680503947231,0.63724493,1782.1,1782.0,1.43897263]
[1680503948721,0.04949248,1782.1,1782.0,1.43897263]
[1680503949033,1.63724493,1782.1,1781.9,1.72121147]
[1680503949236,0.63724493,1782.1,1781.9,1.72121147]
[1680503951831,0.63724493,1782.1,1781.9,2.27720318]
[1680503954734,0.63724493,1782.1,1781.9,1.43620318]
[1680503954940,0.834,1782.0,1781.9,0.55599171]
[1680503955132,2.42175245,1782.0,1781.8,0.88021147]
[1680503955434,1.42175245,1782.0,1781.8,0.88021147]
[1680503956235,1.42175245,1782.0,1781.8,0.87345185]
[1680503956632,0.834,1782.0,1781.7,6.76261548]
[1680503956837,0.834,1782.0,1781.7,5.76261548]
[1680503957041,0.24508567,1781.9,1781.7,6.76261548]
[1680503957334,0.24508567,1781.9,1781.7,5.76261548]
[1680503957636,0.24508567,1781.9,1781.8,0.841]
[1680503957942,0.58775245,1782.1,1781.8,1.841]
[1680503958136,0.58775245,1782.1,1781.9,1.841]
[1680503959038,0.58775245,1782.1,1782.0,1.0]
[1680503959829,0.58775245,1782.1,1781.9,1.841]
[1680503960443,0.58775245,1782.1,1781.9,2.39658232]
[1680503962243,0.58775245,1782.1,1781.9,1.39658232]
[1680503966733,0.58775245,1782.1,1781.9,0.55558232]
[1680503966940,2.42875245,1782.0,1781.7,4.37679047]
[1680503967139,0.84,1781.8,1781.7,4.37679047]
[1680503967342,0.84,1781.8,1781.7,3.2078]
[1680503968048,0.84,1781.8,1781.7,4.37679047]
[1680503968348,1.42875245,1782.0,1781.7,6.21779047]
[1680503969242,1.42875245,1782.0,1781.8,1.0]
[1680503969443,0.58775245,1782.0,1781.9,0.841]
[1680503971149,4.67644357,1782.1,1781.9,0.841]
[1680503971450,0.58775245,1782.0,1781.9,0.841]
[1680503971642,4.67644357,1782.1,1781.9,0.841]
[1680503971846,0.58775245,1782.0,1781.9,0.841]
[1680503972043,0.58775245,1782.0,1781.8,1.84]
[1680503972044,0.70582444,1782.0,1781.8,1.84]
[1680503972345,0.70582444,1782.0,1781.8,0.84]
[1680503973854,0.70582444,1782.0,1781.8,1.84]
[1680503974057,0.70582444,1782.0,1781.8,0.84]
[1680503974254,0.11807199,1782.0,1781.8,0.84]
[1680503974455,0.11807199,1782.0,1781.8,1.84]
[1680503974659,0.70582444,1782.0,1781.8,1.84]
[1680503974854,0.70582444,1782.0,1781.8,0.84]
[1680503976255,0.70582444,1782.0,1781.8,1.84]
[1680503976456,0.70582444,1782.0,1781.8,0.84]
[1680503979161,0.70582444,1782.0,1781.8,1.84]
[1680503979367,0.70582444,1782.0,1781.8,0.84]
[1680503979757,0.70582444,1782.0,1781.8,3.00899047]
[1680503980164,0.70582444,1782.0,1781.8,2.00899047]
[1680503980853,0.70582444,1782.0,1781.8,3.00899047]
[1680503981054,0.70582444,1782.0,1781.9,4.2078]
[1680503981252,0.70582444,1782.0,1781.9,3.2078]
[1680503981659,0.70582444,1782.0,1781.8,2.00899047]
[1680503981853,0.70582444,1782.0,1781.8,3.00899047]
[1680503982057,0.70582444,1782.0,1781.9,0.841]
[1680503983261,1.58671556,1782.0,1781.9,0.841]
[1680503983461,0.70582444,1782.0,1781.9,0.841]
[1680503983657,0.99896311,1782.0,1781.9,0.841]
[1680503984269,1.83596311,1782.0,1781.8,1.16899047]
[1680503984470,0.58850025,1781.9,1781.8,1.16899047]
[1680503984670,0.58850025,1781.9,1781.8,1.86490422]
[1680503985274,0.58284772,1781.9,1781.8,1.86490422]
[1680503985466,0.58284772,1781.9,1781.8,1.16899047]
[1680503985771,0.58284772,1781.9,1781.8,1.86490209]
[1680503987073,0.7013018,1781.9,1781.8,1.86490209]
[1680503989274,0.11845408,1781.9,1781.8,2.16490791]
[1680503991882,0.11845408,1781.9,1781.8,0.69591162]
[1680503992073,0.11845408,1781.9,1781.8,1.53291162]
[1680503992381,0.11845408,1781.9,1781.8,2.70809203]
[1680503992582,0.11845408,1781.9,1781.8,1.53291162]
[1680503994782,0.11845408,1781.9,1781.8,3.00190791]
[1680504001981,0.11845408,1781.9,1781.8,2.16490791]
[1680504011990,0.11845408,1781.9,1781.8,3.00590791]
[1680504044611,0.9993452,1781.9,1781.8,3.00590791]
[1680504047119,0.11845408,1781.9,1781.8,3.00590791]
[1680504059135,0.11845408,1781.9,1781.8,6.21370791]
[1680504063329,0.9993452,1781.9,1781.8,6.21370791]
[1680504063728,0.11845408,1781.9,1781.8,6.21370791]
[1680504065831,0.11845408,1781.9,1781.8,6.20670791]
[1680504074643,0.11845408,1781.9,1781.8,7.20670791]
[1680504075354,0.11845408,1781.9,1781.8,5.73771162]
[1680504075843,0.88089112,1782.1,1781.9,1.0]
[1680504076050,0.88089112,1782.1,1782.0,5.22228651]
[1680504076252,0.88089112,1782.1,1782.0,5.91819813]
[1680504076444,1.17740068,1782.2,1782.0,5.22228651]
[1680504076645,1.17740068,1782.2,1782.1,0.88087426]
[1680504076846,1.17740068,1782.2,1782.1,1.88087426]
[1680504077047,1.17740068,1782.2,1782.1,0.88087426]
[1680504080647,1.17740068,1782.2,1782.1,1.44490272]
[1680504082053,1.17740068,1782.2,1782.1,2.27890272]
[1680504089159,1.17740068,1782.2,1782.1,2.86573746]
[1680504090761,1.29919447,1782.2,1782.1,2.86573746]
[1680504097957,1.29919447,1782.2,1782.1,2.27890272]
[1680504098761,1.29919447,1782.2,1782.1,3.9940548]
[1680504098961,1.29919447,1782.2,1782.1,1.71487426]
[1680504099562,1.29919447,1782.2,1782.1,2.30167576]
[1680504099769,1.29919447,1782.2,1782.1,1.71487426]
[1680504101464,1.29919447,1782.2,1782.1,2.30165435]
[1680504101664,1.29919447,1782.2,1782.1,2.30166051]
[1680504102166,1.29919447,1782.2,1782.1,1.46766051]
[1680504102863,1.29919447,1782.2,1782.1,1.46766197]
[1680504106173,1.29919447,1782.2,1782.1,0.58678771]
[1680504106970,1.29919447,1782.2,1782.1,1.46766197]
[1680504112175,1.29919447,1782.2,1782.1,0.88087426]
[1680504137514,0.12179379,1782.2,1782.1,0.88087426]
[1680504138307,1.29980973,1782.2,1782.1,0.88087426]
[1680504139412,2.43246195,1782.2,1782.1,0.88087426]
[1680504139611,0.96079379,1782.2,1782.1,0.88087426]
[1680504139812,2.43246195,1782.2,1782.1,0.88087426]
[1680504140415,0.96079379,1782.2,1782.1,0.88087426]
[1680504140616,2.43246195,1782.2,1782.1,0.88087426]
[1680504141215,0.96079379,1782.2,1782.1,0.88087426]
[1680504141408,2.13876612,1782.2,1782.1,0.88087426]
[1680504142017,2.13676612,1782.2,1782.1,0.88087426]
[1680504148314,3.13676612,1782.2,1782.1,0.88087426]
[1680504148521,0.95879379,1782.2,1782.1,0.88087426]
[1680504148719,2.13677581,1782.2,1782.1,0.88087426]
[1680504149320,0.95879379,1782.2,1782.1,0.88087426]
[1680504149517,2.13677291,1782.2,1782.1,0.88087426]
[1680504149719,2.13676885,1782.2,1782.1,0.88087426]
[1680504162131,1.29976885,1782.2,1782.1,4.08867426]
[1680504163024,1.29976885,1782.2,1782.1,0.88087426]
[1680504163423,1.29976885,1782.2,1782.1,4.08867426]
[1680504163725,1.29976885,1782.2,1782.1,0.88087426]
[1680504163925,1.29976885,1782.2,1782.1,4.08867426]
[1680504164125,1.29976885,1782.2,1782.1,0.88087426]
[1680504165634,1.29976885,1782.2,1782.1,4.08867426]
[1680504166837,1.29976885,1782.2,1782.1,0.88087426]
[1680504167434,1.29976885,1782.2,1782.1,4.08867426]
[1680504167638,1.29976885,1782.2,1782.1,0.88087426]
[1680504168538,1.29976885,1782.2,1782.1,4.08867426]
[1680504170738,1.29976885,1782.2,1782.1,4.0488]
[1680504170942,1.00509588,1782.2,1782.1,5.91909391]
[1680504171148,1.00509588,1782.2,1782.1,6.91909391]
[1680504171537,1.00509588,1782.2,1782.1,6.22328651]
[1680504172139,1.59378523,1782.2,1782.1,6.22328651]
[1680504172450,1.59378523,1782.2,1782.1,6.91908591]
[1680504173346,1.59378523,1782.2,1782.1,5.22328651]
[1680504173533,0.71048314,1782.2,1782.1,6.22328651]
[1680504173734,1.59378523,1782.2,1782.1,5.22328651]
[1680504173945,0.71048314,1782.2,1782.1,5.22328651]
[1680504174546,0.71048314,1782.2,1782.1,6.22328651]
[1680504175142,0.71048314,1782.2,1782.1,5.22328651]
[1680504175347,1.59378523,1782.2,1782.1,4.38228651]
[1680504179352,1.59378523,1782.2,1782.1,3.2078]
[1680504181550,0.71048314,1782.2,1782.1,3.2078]
[1680504182247,1.59378523,1782.2,1782.1,3.2078]
[1680504183456,0.71048314,1782.2,1782.1,3.2078]
[1680504192862,1.59378523,1782.2,1782.1,3.2078]
[1680504193265,1.00509588,1782.2,1782.0,4.22891147]
[1680504193452,1.59355446,1782.2,1782.0,4.22891147]
[1680504193657,0.58845858,1782.1,1782.0,4.22891147]
[1680504193857,0.12914865,1782.1,1782.0,4.92473349]
[1680504194263,0.71760723,1782.1,1782.0,4.92473349]
[1680504194970,0.12914865,1782.1,1782.0,3.75024698]
[1680504195156,0.12914865,1782.1,1782.0,4.92246251]
[1680504195458,0.12914865,1782.1,1782.0,3.75024698]
[1680504198961,0.12914865,1782.1,1782.0,4.92255961]
[1680504199161,0.71760723,1782.1,1782.0,4.92255961]
[1680504202066,0.71760723,1782.1,1782.0,4.92955961]
[1680504205068,0.71760723,1782.1,1782.0,3.75724698]
[1680504205571,0.71760723,1782.1,1782.0,3.39290871]
[1680504205959,1.01245074,1782.1,1782.0,2.22042496]
[1680504206169,1.01245074,1782.1,1781.9,2.01248375]
[1680504206371,0.58862363,1782.0,1781.9,2.01248375]
[1680504206668,0.71805139,1782.0,1781.9,2.70834956]
[1680504207371,0.71805139,1782.0,1781.9,5.91614956]
[1680504207569,0.71805139,1782.0,1781.9,4.74366581]
[1680504207768,0.71805139,1782.0,1781.9,2.7083703]
[1680504208372,0.71805139,1782.0,1781.9,3.26401495]
[1680504208967,0.12942776,1782.0,1781.9,5.29931046]
[1680504209271,0.71805139,1782.0,1781.9,6.47166324]
[1680504215182,1.55905139,1782.0,1781.9,3.22129749]
[1680504215382,5.775,1781.9,1781.7,1.46559738]
[1680504215584,5.0,1781.5,1781.4,0.96738305]
[1680504215783,0.841,1781.3,1781.1,0.96738305]
[1680504215986,4.6306017,1781.2,1780.9,0.841]
[1680504216190,4.6306017,1781.2,1781.0,0.69620588]
[1680504216387,4.0418,1781.2,1780.9,0.841]
[1680504216588,4.0488,1781.2,1780.9,0.834]
[1680504216886,3.2078,1781.0,1780.9,0.834]
[1680504220087,4.0478,1781.0,1780.7,0.841]
[1680504222093,3.2078,1781.0,1780.8,0.841]
[1680504222487,3.2078,1781.0,1780.9,0.841]
[1680504225899,0.45349463,1781.0,1780.9,0.841]
[1680504226091,4.0448,1781.4,1780.9,0.841]
[1680504226291,4.0448,1781.4,1781.1,0.834]
[1680504226992,3.2078,1781.2,1781.1,0.834]
[1680504230194,3.2078,1781.2,1781.1,1.3981852]
[1680504230399,3.2078,1781.2,1781.1,0.5641852]
[1680504230703,3.2078,1781.2,1781.0,0.841]
[1680504231999,4.0458,1781.2,1780.9,0.841]
[1680504235800,0.838,1781.2,1781.0,3.2078]
[1680504236001,0.838,1781.2,1780.9,0.841]
[1680504239104,4.0458,1781.2,1780.9,0.841]
[1680504240599,4.0458,1781.2,1781.0,0.841]
[1680504240600,3.2078,1781.2,1781.0,0.841]
[1680504240805,0.837,1781.5,1781.1,0.834]
[1680504241003,3.2078,1781.6,1781.4,0.841]
[1680504242004,4.0468,1781.6,1781.2,0.841]
[1680504242813,3.2078,1781.6,1781.4,0.84]
[1680504246719,3.2078,1781.6,1781.5,0.841]
[1680504252014,3.2078,1781.6,1781.4,0.841]
[1680504255716,0.24520825,1781.5,1781.4,0.841]
[1680504256125,1.08520825,1781.5,1781.2,0.834]
[1680504257018,2.08520825,1781.5,1781.2,0.834]
[1680504257219,3.2078,1781.4,1781.2,0.834]
[1680504260322,3.7966017,1781.4,1781.2,1.70783546]
[1680504260517,1.9684108,1781.5,1781.2,1.70783546]
[1680504260518,1.67400995,1781.5,1781.2,1.70783546]
[1680504260736,1.67400995,1781.5,1781.3,0.87383546]
[1680504261226,2.5572125,1781.5,1781.2,1.70783546]
[1680504262228,3.7966017,1781.4,1781.2,1.70783546]
[1680504262435,3.2078,1781.4,1781.2,1.70783546]
[1680504262732,1.67400995,1781.5,1781.2,1.70783546]
[1680504262933,2.5572125,1781.5,1781.2,1.70783546]
[1680504265236,0.5888017,1781.4,1781.2,1.70783546]
[1680504265537,3.7966017,1781.4,1781.2,1.70783546]
[1680504269236,3.7966017,1781.4,1781.3,0.87383546]
[1680504270741,4.04199023,1781.4,1781.3,0.87383546]
[1680504276038,0.83419023,1781.4,1781.3,7.33283546]
[1680504276242,0.11224078,1781.6,1781.4,4.041]
[1680504276545,0.88253012,1781.8,1781.5,5.91618741]
[1680504276732,0.88253012,1781.8,1781.7,0.84]
[1680504279340,4.09033012,1781.9,1781.7,0.84]
[1680504279542,4.09033012,1781.9,1781.8,0.834]
[1680504280041,3.2078,1781.9,1781.8,0.834]
[1680504280238,4.08974796,1781.9,1781.8,0.834]
[1680504280540,3.2078,1781.9,1781.8,0.834]
[1680504281238,4.08955501,1781.9,1781.8,0.834]
[1680504281935,4.93055501,1781.9,1781.6,2.26727658]
[1680504282133,0.88175501,1781.8,1781.6,1.38877332]
[1680504283840,0.07400333,1781.7,1781.6,1.38877332]
[1680504291753,5.93055501,1781.9,1781.6,1.38877332]
[1680504292149,0.837,1781.8,1781.6,0.54777332]
[1680504292353,1.837,1781.8,1781.5,1.71950326]
[1680504292746,0.837,1781.8,1781.5,1.71950326]
[1680504294556,0.837,1781.8,1781.6,0.87850326]
[1680504295448,0.837,1781.8,1781.5,4.92730326]
[1680504302154,4.92755501,1781.9,1781.6,0.834]
[1680504305358,1.88175501,1781.8,1781.6,0.834]
[1680504305659,0.88175501,1781.8,1781.6,0.834]
[1680504306056,0.07595296,1781.7,1781.6,0.834]
[1680504309063,0.07595296,1781.7,1781.6,1.38780692]
[1680504309560,0.07595296,1781.7,1781.6,1.39480692]
[1680504309863,0.88175501,1781.9,1781.6,6.48111018]
[1680504310057,0.88175501,1781.9,1781.8,0.834]
[1680504311759,0.93004798,1781.9,1781.8,0.834]
[1680504312059,0.93004798,1781.9,1781.7,0.841]
[1680504316665,0.93004798,1781.9,1781.8,0.841]
[1680504321369,1.2249998,1781.9,1781.8,1.71950326]
[1680504321769,0.88301466,1782.0,1781.8,6.75700351]
[1680504321960,0.0996284,1782.1,1781.9,3.85093424]
[1680504322166,3.2078,1782.3,1782.0,2.55316869]
[1680504322370,1.47088354,1782.4,1782.2,0.841]
[1680504322671,1.58685845,1782.4,1782.3,0.84]
[1680504325975,1.47088354,1782.4,1782.3,0.84]
[1680504326275,1.58686043,1782.4,1782.3,0.84]
[1680504327372,1.58686062,1782.4,1782.3,0.84]
[1680504328384,1.47088354,1782.4,1782.3,0.84]
[1680504328881,1.47088354,1782.4,1782.3,0.88772555]
[1680504331288,1.47088354,1782.4,1782.3,0.84]
[1680504331991,1.47088354,1782.4,1782.2,0.841]
[1680504332391,1.47088354,1782.4,1782.3,0.04766516]
[1680504332594,6.07421133,1782.5,1782.3,0.04766516]
[1680504333098,6.07421133,1782.5,1782.2,0.841]
[1680504333285,6.07421133,1782.5,1782.4,0.04764764]
[1680504333490,6.19018623,1782.5,1782.4,0.04764764]
[1680504333691,6.07421133,1782.5,1782.2,0.841]
[1680504340901,4.60332779,1782.5,1782.2,0.841]
[1680504341904,4.60332779,1782.5,1782.3,0.10215909]
[1680504342200,3.76332779,1782.5,1782.3,0.94315909]
[1680504348299,3.2078,1782.5,1782.3,0.94315909]
[1680504348505,3.2078,1782.5,1782.4,0.837]
[1680504349000,5.24298159,1782.7,1782.4,0.837]
[1680504349206,3.77209805,1782.7,1782.5,0.841]
[1680504349401,4.02214924,1782.8,1782.7,0.841]
[1680504349402,1.47088354,1782.8,1782.7,0.841]
[1680504349704,4.67868354,1782.9,1782.7,0.841]
[1680504349898,3.2078,1782.9,1782.7,0.841]
[1680504351705,4.38139588,1782.9,1782.7,0.841]
[1680504357010,4.38139588,1782.9,1782.8,0.29711578]
[1680504367514,3.2078,1782.9,1782.8,0.29711578]
[1680504372019,3.2078,1782.9,1782.8,1.13711578]
[1680504373714,4.93633166,1783.0,1782.8,1.13711578]
[1680504378226,2.01359588,1782.9,1782.8,0.29711578]
[1680504378522,3.01359588,1782.9,1782.8,0.29711578]
[1680504378728,3.01359588,1782.9,1782.6,1.40491051]
[1680504378923,3.2078,1782.8,1782.6,1.40491051]
[1680504381931,4.0883024,1782.8,1782.6,1.40491051]
[1680504383723,0.8805024,1782.7,1782.6,1.40491051]
[1680504386228,0.8805024,1782.7,1782.6,1.40067613]
[1680504386829,0.8805024,1782.7,1782.6,1.69699759]
[1680504389934,0.8805024,1782.7,1782.6,2.69699759]
[1680504390523,0.8805024,1782.7,1782.6,3.53799759]
[1680504391831,0.8805024,1782.7,1782.6,2.53799759]
[1680504392040,0.8805024,1782.7,1782.6,1.69699759]
[1680504392237,0.8805024,1782.7,1782.6,2.69699759]
[1680504392836,1.17359588,1782.7,1782.6,3.28216741]
[1680504394938,1.17359588,1782.7,1782.6,4.1613361]
[1680504396133,1.17359588,1782.7,1782.6,3.57616628]
[1680504397241,1.17359588,1782.7,1782.6,4.1622254]
[1680504397640,1.17359588,1782.7,1782.6,3.57616628]